bitfinex/quotes_ETHUSD_20250905
["timestamp","ask_amount","ask_price","bid_price","bid_amount"]
[1757054013072,0.00020001,4335.4,4335.3,11.94031001]
[1757054013277,0.00020001,4335.4,4335.3,11.45611001]
[1757054014082,0.31460001,4335.4,4335.3,11.45611001]
[1757054014580,0.31460001,4335.4,4335.3,4.60664543]
[1757054014906,0.31460001,4335.4,4335.3,6.20564544]
[1757054014907,1.08250001,4335.4,4335.3,6.20564544]
[1757054016393,0.77900001,4335.4,4335.3,6.20564544]
[1757054020020,0.31460001,4335.4,4335.3,6.20564544]
[1757054021480,0.00020001,4335.4,4335.3,6.20564544]
[1757054021675,0.00020001,4335.4,4335.3,7.86945985]
[1757054022017,0.00020001,4335.4,4335.3,9.13255985]
[1757054022520,0.00020001,4335.4,4335.3,9.24775985]
[1757054023605,0.00020001,4335.4,4335.3,12.8132893]
[1757054024475,0.00020001,4335.4,4335.3,15.11328929]
[1757054025808,0.00020001,4335.4,4335.3,20.42528929]
[1757054027709,0.31670001,4335.4,4335.3,15.61745984]
[1757054028215,0.00020001,4335.4,4335.3,16.38665984]
[1757054029506,0.00020001,4335.4,4335.3,19.95218929]
[1757054029802,0.00020001,4335.4,4335.3,19.95618929]
[1757054032991,0.00020001,4335.4,4335.3,20.17226962]
[1757054034198,0.00020001,4335.4,4335.3,20.64336962]
[1757054034725,0.00020001,4335.4,4335.3,20.17226962]
[1757054035586,0.31670001,4335.4,4335.3,15.83754017]
[1757054035832,0.31590001,4335.4,4335.3,15.83754017]
[1757054036790,0.001,4335.7,4335.4,3.09859224]
[1757054036984,0.001,4335.7,4335.4,5.16094581]
[1757054037421,0.001,4335.7,4335.4,5.93014581]
[1757054037796,0.001,4335.7,4335.4,6.02258124]
[1757054038003,0.001,4335.7,4335.4,6.49368124]
[1757054039219,0.001,4335.7,4335.4,9.27760091]
[1757054039422,0.001,4335.7,4335.4,9.49368728]
[1757054040737,0.001,4335.7,4335.4,13.05921673]
[1757054042293,0.001,4335.7,4335.4,15.35921672]
[1757054047916,0.3175,4335.5,4335.4,14.11891672]
[1757054049464,1.0916,4335.5,4335.4,4.91511403]
[1757054049616,1.0916,4335.5,4335.4,8.80811403]
[1757054050147,0.7881,4335.5,4335.4,8.80811403]
[1757054052742,1.0916,4335.5,4335.4,4.8226786]
[1757054052940,1.0916,4335.5,4335.4,8.7156786]
[1757054053451,1.0916,4335.5,4335.4,8.49959223]
[1757054054153,1.0916,4335.5,4335.4,6.19959224]
[1757054055428,0.7881,4335.5,4335.4,6.19959224]
[1757054055828,0.3175,4335.5,4335.4,6.19959224]
[1757054056041,0.001,4335.5,4335.4,6.19959224]
[1757054056234,0.7821,4335.5,4335.4,6.19959224]
[1757054057151,0.3115,4335.5,4335.4,6.19959224]
[1757054060425,0.001,4335.5,4335.4,6.50149224]
[1757054060926,0.001,4335.5,4335.4,6.19959224]
[1757054061128,0.3115,4335.5,4335.4,6.19959224]
[1757054063353,0.3107,4335.5,4335.4,6.19959224]
[1757054065060,0.0002,4335.5,4335.4,6.19959224]
[1757054065230,0.0002,4335.5,4335.4,12.36324159]
[1757054065425,0.0002,4335.5,4335.4,15.36324159]
[1757054065626,0.0002,4335.5,4335.4,15.57087595]
[1757054070870,0.0002,4335.5,4335.4,15.56787595]
[1757054077048,0.001,4336.4,4335.8,2.3063435]
[1757054077251,0.001,4336.4,4336.3,6.66364295]
[1757054077450,0.001,4336.4,4336.3,10.85454295]
[1757054077657,0.001,4336.4,4336.3,11.86744295]
[1757054078358,0.3115,4336.4,4336.3,7.1023135]
[1757054078566,0.3115,4336.4,4336.3,11.88505269]
[1757054079058,0.001,4336.4,4336.3,11.88505269]
[1757054080071,0.3001,4336.4,4336.3,11.88505269]
[1757054082969,0.001,4336.4,4336.3,11.88505269]
[1757054083172,0.3001,4336.4,4336.3,7.52652324]
[1757054083340,0.7705,4336.4,4336.3,7.52652324]
[1757054083673,0.3001,4336.4,4336.3,7.52652324]
[1757054083874,0.7705,4336.4,4336.3,7.52652324]
[1757054084186,0.3001,4336.4,4336.3,7.52652324]
[1757054084871,0.001,4336.4,4336.3,7.52652324]
[1757054085046,0.001,4336.4,4336.3,8.00172324]
[1757054085247,0.3001,4336.4,4336.3,7.52652324]
[1757054086874,0.7705,4336.4,4336.3,7.52652324]
[1757054087951,0.3001,4336.4,4336.3,7.52652324]
[1757054091082,0.2993,4336.4,4336.3,7.52652324]
[1757054091450,0.0002,4336.4,4336.3,7.83432324]
[1757054091650,0.0002,4336.4,4336.3,8.30952324]
[1757054093583,0.0002,4336.4,4336.3,8.00172324]
[1757054094086,0.2993,4336.4,4336.3,7.52652324]
[1757054095188,0.2993,4336.4,4336.3,0.1152]
[1757054095189,1.0732,4336.4,4336.3,0.1152]
[1757054095356,1.0732,4336.4,4336.3,4.0002]
[1757054096087,1.0732,4336.4,4336.3,3.885]
[1757054097785,0.2993,4336.4,4336.3,3.885]
[1757054097951,0.7697,4336.4,4336.3,3.885]
[1757054098151,0.7697,4336.4,4336.3,6.1911135]
[1757054099157,0.7697,4336.4,4336.3,3.885]
[1757054104491,0.2993,4336.4,4336.3,3.885]
[1757054105074,0.2993,4336.4,4336.3,6.1911135]
[1757054105281,0.2993,4336.4,4336.3,3.885]
[1757054105872,0.2993,4336.4,4336.3,4.0002]
[1757054108519,0.0002,4336.4,4336.3,4.0002]
[1757054109689,0.0002,4336.4,4336.3,7.0770135]
[1757054109893,0.0002,4336.4,4336.3,7.5480135]
[1757054112335,0.0002,4336.4,4336.3,6.3063135]
[1757054112538,0.288,4336.4,4336.3,6.3063135]
[1757054115756,0.288,4336.4,4336.3,6.3103135]
[1757054116445,0.0002,4336.4,4336.3,7.0810135]
[1757054116612,0.288,4336.4,4336.3,6.3103135]
[1757054116812,0.7386,4336.4,4336.3,4.0042]
[1757054117021,0.288,4336.4,4336.3,4.0042]
[1757054117320,0.288,4336.4,4336.3,6.3103135]
[1757054117948,0.0002,4336.4,4336.3,6.3103135]
[1757054118314,0.0002,4336.4,4336.3,7.5520135]
[1757054118514,0.0002,4336.4,4336.3,8.93773642]
[1757054118918,0.0506,4336.8,4336.6,2.30594053]
[1757054119118,0.0506,4336.8,4336.7,3.882]
[1757054119318,0.0506,4336.8,4336.7,3.9972]
[1757054120749,0.0506,4336.8,4336.7,6.3031008]
[1757054125136,0.3384,4336.8,4336.7,3.9972]
[1757054125721,0.3384,4336.8,4336.7,6.3031008]
[1757054125921,0.3384,4336.8,4336.7,3.9972]
[1757054126338,0.3384,4336.8,4336.7,6.3031008]
[1757054126744,0.3384,4336.8,4336.7,3.9972]
[1757054127058,0.3384,4336.8,4336.7,6.3031008]
[1757054127239,0.0506,4336.8,4336.7,6.3031008]
[1757054128457,0.0506,4336.8,4336.7,6.6045008]
[1757054128761,0.0506,4336.8,4336.7,7.5448008]
[1757054129149,0.0506,4336.8,4336.7,7.0738008]
[1757054129549,0.0506,4336.8,4336.7,6.3031008]
[1757054129941,0.0506,4336.8,4336.7,7.0738008]
[1757054130360,0.0506,4336.8,4336.7,7.5448008]
[1757054130551,0.3384,4336.8,4336.7,3.9972]
[1757054130741,0.3384,4336.8,4336.7,6.3031008]
[1757054131837,0.3384,4336.8,4336.7,3.9972]
[1757054132039,0.789,4336.8,4336.7,3.9972]
[1757054133848,0.3384,4336.8,4336.7,6.3031008]
[1757054134170,0.0506,4336.8,4336.7,7.5448008]
[1757054134875,0.0506,4336.8,4336.7,7.0738008]
[1757054135163,0.0506,4336.8,4336.7,7.5448008]
[1757054135471,0.0506,4336.8,4336.7,8.41468149]
[1757054135669,0.0506,4336.8,4336.7,8.52988149]
[1757054137539,0.0506,4336.8,4336.7,8.05888149]
[1757054138173,0.0506,4336.8,4336.7,8.52988149]
[1757054140372,0.0506,4336.8,4336.7,9.32188149]
[1757054140573,0.0506,4336.8,4336.7,9.41428937]
[1757054145581,0.0506,4336.8,4336.7,12.97792493]
[1757054146751,0.0498,4336.8,4336.7,12.97792493]
[1757054150009,0.0498,4336.8,4336.7,13.15407051]
[1757054151600,0.0508,4336.8,4336.7,13.15407051]
[1757054151808,0.0508,4336.8,4336.7,15.4540705]
[1757054152099,0.0508,4336.8,4336.7,13.15407051]
[1757054152489,0.0508,4336.8,4336.7,12.97792493]
[1757054154277,0.0508,4336.8,4336.7,13.1469021]
[1757054157699,0.0508,4336.8,4336.7,12.6759021]
[1757054158203,0.0508,4336.8,4336.7,13.1249021]
[1757054158992,0.0508,4336.8,4336.7,12.6759021]
[1757054159290,0.0508,4336.8,4336.7,11.9052021]
[1757054159492,0.3526,4336.8,4336.7,11.9052021]
[1757054159886,0.3526,4336.8,4336.7,8.34156654]
[1757054161575,0.3526,4336.8,4336.7,2.51350868]
[1757054161909,0.7976,4336.8,4336.7,6.38850868]
[1757054162091,0.7976,4336.8,4336.7,6.2961008]
[1757054164794,0.3526,4336.8,4336.7,6.2961008]
[1757054166408,0.0508,4336.8,4336.7,6.2961008]
[1757054166613,0.0508,4336.8,4336.7,12.61430908]
[1757054166780,0.0508,4336.8,4336.7,13.40630908]
[1757054166987,0.0508,4336.8,4336.7,15.70630907]
[1757054167183,0.0508,4336.8,4336.7,12.14267351]
[1757054167386,0.0508,4336.8,4336.7,10.97678204]
[1757054168015,0.0508,4336.8,4336.7,11.29308204]
[1757054168216,0.0508,4336.8,4336.7,11.78608204]
[1757054168598,0.0508,4336.8,4336.7,12.23508204]
[1757054169709,0.0508,4336.8,4336.7,12.4109679]
[1757054171123,0.0508,4336.8,4336.7,10.11096791]
[1757054174622,0.05,4336.8,4336.7,10.11096791]
[1757054175622,0.3439,4336.8,4336.7,7.88478205]
[1757054176715,0.05,4336.8,4336.7,7.88478205]
[1757054176900,0.05,4336.8,4336.7,8.65038205]
[1757054177105,0.05,4336.8,4336.7,9.09168205]
[1757054178738,0.05,4336.8,4336.7,9.88368205]
[1757054179030,0.05,4336.8,4336.7,13.44731761]
[1757054182137,0.05,4336.8,4336.7,13.62413848]
[1757054186035,1e-08,4336.8,4336.7,13.62413848]
[1757054186423,1e-08,4336.8,4336.7,16.62413848]
[1757054188224,1e-08,4336.8,4336.7,16.44731761]
[1757054191438,1e-08,4336.8,4336.7,16.00601761]
[1757054192313,1e-08,4336.8,4336.7,16.44731761]
[1757054192708,1e-08,4336.8,4336.7,15.24041761]
[1757054192910,1.03060001,4336.8,4336.7,4.21250933]
[1757054193229,1.03060001,4336.8,4336.7,7.9911008]
[1757054195714,0.72710001,4336.8,4336.7,7.9911008]
[1757054196340,0.29390001,4336.8,4336.7,7.9911008]
[1757054196741,1e-08,4336.8,4336.7,7.9911008]
[1757054197124,0.72710001,4336.8,4336.7,4.1201008]
[1757054197332,1.03060001,4336.8,4336.7,7.9911008]
[1757054200271,0.72710001,4336.8,4336.7,7.9911008]
[1757054202459,0.72630001,4336.8,4336.7,7.9911008]
[1757054212186,0.29310001,4336.8,4336.7,7.9911008]
[1757054212954,0.75240001,4336.8,4336.7,7.9911008]
[1757054213797,0.29310001,4336.8,4336.7,7.9911008]
[1757054215793,0.001,4336.9,4336.8,2.30584762]
[1757054215970,0.001,4336.9,4336.8,2.76704762]
[1757054216157,0.001,4336.9,4336.8,2.30584762]
[1757054218674,0.3144,4336.9,4336.8,2.30584762]
[1757054220606,0.001,4336.9,4336.8,2.30584762]
[1757054220775,0.001,4336.9,4336.8,3.05594762]
[1757054221092,0.001,4336.9,4336.8,3.49744762]
[1757054221297,0.001,4336.9,4336.8,3.05594762]
[1757054223211,0.001,4336.9,4336.8,3.49744762]
[1757054224268,0.001,4336.9,4336.8,3.05594762]
[1757054224471,0.3144,4336.9,4336.8,2.30584762]
[1757054224875,0.3144,4336.9,4336.7,5.6852]
[1757054225173,0.3144,4336.9,4336.8,2.30584762]
[1757054226804,0.001,4336.9,4336.8,2.30584762]
[1757054226983,0.001,4336.9,4336.8,3.05594762]
[1757054230290,0.0002,4336.9,4336.8,3.05594762]
[1757054231294,0.0002,4336.9,4336.8,2.30584762]
[1757054233427,0.3124,4336.9,4336.8,2.30584762]
[1757054235726,0.0002,4336.9,4336.8,2.30584762]
[1757054235930,0.0002,4336.9,4336.8,2.30984762]
[1757054236229,0.0002,4336.9,4336.8,4.73050606]
[1757054238538,0.0002,4336.9,4336.8,5.52250606]
[1757054240330,0.0002,4336.9,4336.8,8.52250606]
[1757054249914,0.0002,4336.9,4336.8,10.82250605]
[1757054254440,0.0002,4336.9,4336.8,10.38630605]
[1757054254857,0.0002,4336.9,4336.8,10.82250605]
[1757054256016,0.7589,4336.9,4336.8,9.70750605]
[1757054256244,0.7589,4336.9,4336.8,8.58804761]
[1757054256713,0.3124,4336.9,4336.8,8.58804761]
[1757054257325,0.7589,4336.9,4336.8,8.58804761]
[1757054257744,1.0624,4336.9,4336.8,8.58804761]
[1757054258121,1.0616,4336.9,4336.8,8.58804761]
[1757054258522,0.7581,4336.9,4336.8,8.58804761]
[1757054260047,0.3116,4336.9,4336.8,8.58804761]
[1757054263150,0.001,4337.3,4337.2,2.30563497]
[1757054263360,0.4623,4337.3,4337.2,6.16863497]
[1757054263568,0.7577,4337.3,4337.2,6.28383497]
[1757054264063,0.7577,4337.3,4337.2,6.56923497]
[1757054264064,0.001,4337.3,4337.2,6.56923497]
[1757054264246,0.001,4337.3,4337.2,9.37042902]
[1757054264438,0.2964,4337.3,4337.2,7.40132902]
[1757054264640,0.7577,4337.3,4337.2,6.37623858]
[1757054264835,0.2964,4337.3,4337.2,6.37623858]
[1757054268053,1.0612,4337.3,4337.2,0.20760361]
[1757054268385,1.0612,4337.3,4337.2,3.9772]
[1757054273384,0.7577,4337.3,4337.2,3.9772]
[1757054276796,0.2964,4337.3,4337.2,3.9772]
[1757054277800,0.7577,4337.3,4337.2,3.9772]
[1757054278600,0.2964,4337.3,4337.2,3.9772]
[1757054280898,0.001,4337.3,4337.2,7.45993497]
[1757054281787,0.001,4337.3,4337.2,8.43650117]
[1757054285695,0.001,4337.3,4337.2,10.73650116]
[1757054286008,0.0002,4337.3,4337.2,10.73650116]
[1757054287706,0.0002,4337.3,4337.2,11.52850116]
[1757054288023,0.0002,4337.3,4337.2,11.62089602]
[1757054289742,0.0002,4337.3,4337.2,14.62089602]
[1757054291635,0.0002,4337.3,4337.2,18.18437968]
[1757054292236,0.001,4338.2,4337.2,15.87874471]
[1757054292450,0.025,4338.8,4338.4,0.792]
[1757054292604,0.025,4338.8,4338.7,2.30483785]
[1757054292808,0.025,4338.8,4338.7,6.58053785]
[1757054293138,0.025,4338.8,4338.7,7.07753785]
[1757054293437,0.025,4338.8,4338.7,8.13276652]
[1757054293613,0.025,4338.8,4338.7,7.83226652]
[1757054293938,0.3175,4338.8,4338.7,7.33526652]
[1757054294534,0.025,4338.8,4338.7,7.33526652]
[1757054297231,0.3175,4338.8,4338.7,7.33526652]
[1757054299739,0.025,4338.8,4338.7,8.13276652]
[1757054300537,0.025,4338.8,4338.7,7.33526652]
[1757054304464,0.3175,4338.8,4338.7,7.33526652]
[1757054304844,0.7504,4338.8,4338.7,7.33526652]
[1757054305548,0.3175,4338.8,4338.7,7.33526652]
[1757054306944,0.025,4338.8,4338.7,7.33526652]
[1757054307765,0.3175,4338.8,4338.7,7.33526652]
[1757054308966,0.7504,4338.8,4338.7,7.33526652]
[1757054309183,0.3175,4338.8,4338.7,7.33526652]
[1757054309864,0.3185,4338.8,4338.7,7.33526652]
[1757054310541,0.026,4338.8,4338.7,7.63576652]
[1757054310742,0.026,4338.8,4338.7,8.59716652]
[1757054311560,0.3185,4338.8,4338.7,7.33526652]
[1757054311761,0.7514,4338.8,4338.7,6.28003785]
[1757054312471,0.026,4338.8,4338.7,7.07753785]
[1757054312630,0.3185,4338.8,4338.7,6.28003785]
[1757054313859,0.3177,4338.8,4338.7,6.28003785]
[1757054315340,0.7506,4338.8,4338.7,6.28003785]
[1757054315741,0.7506,4338.8,4338.7,3.9752]
[1757054318797,0.3177,4338.8,4338.7,3.9752]
[1757054318991,0.3177,4338.8,4338.7,6.28003785]
[1757054319362,0.3177,4338.8,4338.7,3.9752]
[1757054322567,0.3177,4338.8,4338.7,6.28003785]
[1757054322768,0.0252,4338.8,4338.7,3.9752]
[1757054323094,0.0252,4338.8,4338.7,4.7371]
[1757054323296,0.0252,4338.8,4338.7,7.04193785]
[1757054323798,0.0252,4338.8,4338.7,4.7371]
[1757054323967,0.0252,4338.8,4338.7,3.9752]
[1757054324169,0.0252,4338.8,4338.7,6.28003785]
[1757054325500,0.0252,4338.8,4338.7,3.9752]
[1757054325979,0.0252,4338.8,4338.7,6.28003785]
[1757054327572,0.0252,4338.8,4338.7,6.28003785]
[1757054327904,0.0252,4338.8,4338.7,7.04193785]
[1757054330002,0.0252,4338.8,4338.7,7.48303785]
[1757054330501,0.0252,4338.8,4338.7,7.04193785]
[1757054330802,0.0252,4338.8,4338.7,7.48303785]
[1757054332614,0.0252,4338.8,4338.7,6.73953785]
[1757054333385,0.0252,4338.8,4338.7,6.28003785]
[1757054334515,0.0252,4338.8,4338.7,7.04193785]
[1757054337526,0.0252,4338.8,4338.7,6.73953785]
[1757054337728,0.0252,4338.8,4338.7,6.58243785]
[1757054337893,0.0252,4338.8,4338.7,8.54168108]
[1757054338898,0.0252,4338.8,4338.7,10.84168107]
[1757054341817,0.0244,4338.8,4338.7,10.84168107]
[1757054345020,0.0244,4338.8,4338.7,8.54168108]
[1757054346927,0.3381,4338.8,4338.7,7.33868108]
[1757054347129,0.0244,4338.8,4338.7,7.33868108]
[1757054348206,0.0244,4338.8,4338.7,7.79818108]
[1757054350209,0.0244,4338.8,4338.7,8.10518108]
[1757054350949,0.3131,4338.8,4338.7,7.33868108]
[1757054351249,0.7434,4338.8,4338.7,6.28003785]
[1757054351409,0.3131,4338.8,4338.7,6.28003785]
[1757054358157,0.0244,4338.8,4338.7,7.05493785]
[1757054358469,0.0244,4338.8,4338.7,7.51443785]
[1757054358755,0.0244,4338.8,4338.7,8.30643785]
[1757054358957,1e-08,4338.8,4338.7,9.53787557]
[1757054359170,1e-08,4338.8,4338.7,12.6302331]
[1757054359771,1e-08,4338.8,4338.7,12.84629897]
[1757054363172,1e-08,4338.8,4338.7,12.84608659]
[1757054367470,1e-08,4338.8,4338.7,12.38658659]
[1757054367781,1e-08,4338.8,4338.7,12.83708659]
[1757054369578,0.001,4339.3,4339.2,2.30457227]
[1757054369579,0.00020001,4339.3,4339.2,2.30457227]
[1757054369878,0.00020001,4339.3,4339.2,6.37142576]
[1757054370077,0.00020001,4339.3,4339.2,6.48662576]
[1757054371890,0.00020001,4339.3,4339.2,6.91692576]
[1757054373783,0.00020001,4339.3,4339.2,7.22392576]
[1757054373998,0.28890001,4339.3,4339.2,6.91692576]
[1757054374149,0.71920001,4339.3,4339.2,6.91692576]
[1757054374352,1.02270001,4339.3,4339.2,6.48662576]
[1757054374779,0.71920001,4339.3,4339.2,6.48662576]
[1757054381473,0.28890001,4339.3,4339.2,6.48662576]
[1757054385202,0.28890001,4339.3,4339.2,6.27077227]
[1757054385406,0.28890001,4339.3,4339.2,6.48670925]
[1757054386909,0.72270001,4339.3,4339.2,6.48670925]
[1757054387490,0.28890001,4339.3,4339.2,6.48670925]
[1757054387694,0.28890001,4339.3,4339.2,4.18213698]
[1757054387880,0.72270001,4339.3,4339.2,4.18213698]
[1757054388279,0.72270001,4339.3,4339.2,6.48670925]
[1757054389980,0.72270001,4339.3,4339.2,4.18213698]
[1757054390176,0.28890001,4339.3,4339.2,0.33113698]
[1757054390387,0.00020001,4339.3,4339.2,6.77880925]
[1757054390613,0.00020001,4339.3,4339.2,7.23950925]
[1757054390989,0.71980001,4339.3,4339.2,4.18013698]
[1757054391311,0.71980001,4339.3,4339.2,4.18029763]
[1757054391614,0.28600001,4339.3,4339.2,6.4848699]
[1757054392098,0.28600001,4339.3,4339.2,4.18029763]
[1757054393080,0.28600001,4339.3,4339.2,6.48485077]
[1757054393312,0.00020001,4339.3,4339.2,6.26877227]
[1757054394318,0.71980001,4339.3,4339.2,3.9642]
[1757054395185,0.28600001,4339.3,4339.2,3.9642]
[1757054396224,0.71980001,4339.3,4339.2,3.9642]
[1757054396517,0.28600001,4339.3,4339.2,3.9642]
[1757054397319,0.28520001,4339.3,4339.2,3.9642]
[1757054398026,0.42638224,4339.3,4339.2,3.9642]
[1757054398231,0.86018224,4339.3,4339.2,3.9642]
[1757054399196,0.86118224,4339.3,4339.2,3.9642]
[1757054402441,0.001,4339.3,4339.2,3.9642]
[1757054403623,0.001,4339.3,4339.2,4.719]
[1757054403941,0.2868,4339.3,4339.2,3.9632]
[1757054404140,0.7206,4339.3,4339.2,0.1152]
[1757054404343,1.41343984,4339.3,4339.2,0.1152]
[1757054405924,0.97963984,4339.3,4339.2,0.1152]
[1757054410439,1.45053984,4339.3,4339.2,0.1152]
[1757054411520,0.97963984,4339.3,4339.2,0.1152]
[1757054413450,0.001,4339.3,4339.2,1.3655]
[1757054413654,0.001,4339.3,4339.2,3.67007227]
[1757054413825,0.001,4339.3,4339.2,5.00889156]
[1757054418453,0.001,4339.3,4339.2,3.20407227]
[1757054421156,0.001,4339.3,4339.2,3.67007227]
[1757054423357,0.001,4339.3,4339.2,3.88618229]
[1757054423733,0.001,4339.3,4339.2,3.42018229]
[1757054424672,0.001,4339.3,4339.2,3.88618229]
[1757054424969,0.001,4339.3,4339.2,5.05327651]
[1757054425164,0.0002,4339.3,4339.2,5.05327651]
[1757054425551,0.0002,4339.3,4339.2,4.58727651]
[1757054427473,0.3074,4339.3,4339.2,4.17731002]
[1757054428029,0.3074,4339.3,4339.2,6.48188229]
[1757054428540,0.0002,4339.3,4339.2,6.48188229]
[1757054428929,0.3074,4339.3,4339.2,6.48188229]
[1757054429660,0.3074,4339.3,4339.2,4.17731002]
[1757054430160,0.7783,4339.3,4339.2,4.17731002]
[1757054430334,1.47113985,4339.3,4339.2,4.17731002]
[1757054432461,1.47113985,4339.3,4339.2,4.17731995]
[1757054432661,1.00023985,4339.3,4339.2,4.17731995]
[1757054434831,1.47113985,4339.3,4339.2,4.17731995]
[1757054435038,1.00023985,4339.3,4339.2,4.17731995]
[1757054435465,0.69303985,4339.3,4339.2,4.17731995]
[1757054437051,1.00023985,4339.3,4339.2,4.17731995]
[1757054441485,0.69303985,4339.3,4339.2,4.17731995]
[1757054441673,0.69303985,4339.3,4339.2,4.47821995]
[1757054442184,0.69303985,4339.3,4339.2,4.97481995]
[1757054443187,0.69303985,4339.3,4339.2,4.67391995]
[1757054443387,0.69303985,4339.3,4339.2,4.17731995]
[1757054444192,1.00073985,4339.3,4339.2,4.17731995]
[1757054444673,0.69303985,4339.3,4339.2,4.67391995]
[1757054445363,0.69303985,4339.3,4339.2,4.97481995]
[1757054445789,0.69303985,4339.3,4339.2,5.43871995]
[1757054446495,0.69303985,4339.3,4339.2,4.97481995]
[1757054446671,0.69303985,4339.3,4339.2,5.43871995]
[1757054447384,0.69303985,4339.3,4339.2,4.97481995]
[1757054448079,1.00073985,4339.3,4339.2,4.17731995]
[1757054448676,0.69303985,4339.3,4339.2,4.17731995]
[1757054449384,0.69303985,4339.3,4339.2,4.97481995]
[1757054450093,0.69303985,4339.3,4339.2,4.7587]
[1757054450299,0.69303985,4339.3,4339.2,4.97486978]
[1757054451479,0.69303985,4339.3,4339.2,4.6739867]
[1757054453099,0.69223985,4339.3,4339.2,4.9748867]
[1757054453497,2.33026131,4339.8,4339.6,2.30434136]
[1757054453498,0.026,4339.8,4339.6,2.30434136]
[1757054453683,0.026,4339.8,4339.7,7.62689344]
[1757054453882,0.026,4339.8,4339.7,7.74209344]
[1757054460709,0.026,4339.8,4339.7,7.74160955]
[1757054460912,0.026,4339.8,4339.7,8.91601136]
[1757054461974,0.026,4339.8,4339.7,8.45211136]
[1757054462387,0.026,4339.8,4339.7,8.91601136]
[1757054473756,0.026,4339.8,4339.7,8.91583603]
[1757054478057,0.3206,4339.8,4339.7,7.65443603]
[1757054479456,0.3206,4339.8,4339.7,6.48003422]
[1757054480827,0.3198,4339.8,4339.7,4.17572748]
[1757054481164,0.3198,4339.8,4339.7,6.48003422]
[1757054481738,0.3198,4339.8,4339.7,4.17572748]
[1757054481940,0.3198,4339.8,4339.7,6.48003422]
[1757054482351,0.3198,4339.8,4339.7,4.17572748]
[1757054482555,0.3198,4339.8,4339.7,6.48003422]
[1757054482764,0.3198,4339.8,4339.7,4.17572748]
[1757054483866,0.0252,4339.8,4339.7,4.17572748]
[1757054484545,0.0252,4339.8,4339.7,6.48003422]
[1757054484750,0.0252,4339.8,4339.7,6.97233422]
[1757054486281,0.0252,4339.8,4339.7,4.66802748]
[1757054486879,0.0252,4339.8,4339.7,6.97233422]
[1757054487053,0.0252,4339.8,4339.7,4.66802748]
[1757054487250,0.0252,4339.8,4339.7,4.17572748]
[1757054488279,0.0252,4339.8,4339.7,6.97233422]
[1757054488851,0.0252,4339.8,4339.7,4.17572748]
[1757054489787,0.0252,4339.8,4339.7,4.17628666]
[1757054490665,0.3198,4339.8,4339.7,4.17628666]
[1757054490866,0.7855,4339.8,4339.7,4.17628666]
[1757054491685,0.0252,4339.8,4339.7,6.4805934]
[1757054492477,0.0252,4339.8,4339.7,4.17628666]
[1757054495991,0.0252,4339.8,4339.7,6.7662934]
[1757054496193,0.0252,4339.8,4339.7,7.25853979]
[1757054496984,0.0252,4339.8,4339.7,7.70813979]
[1757054500109,0.0252,4339.8,4339.7,4.95423305]
[1757054500287,0.0252,4339.8,4339.7,7.25853979]
[1757054500709,0.3166,4339.8,4339.7,4.17223305]
[1757054500892,0.7501,4339.8,4339.7,4.17223305]
[1757054502483,3.35785365,4339.8,4339.7,4.17223305]
[1757054504216,3.35785365,4339.8,4339.7,4.05703305]
[1757054504823,4.0506615,4339.8,4339.7,4.05703305]
[1757054505605,4.0506615,4339.8,4339.7,0.21603305]
[1757054507714,2.30438129,4339.6,4339.4,3.841]
[1757054508022,2.30438129,4339.6,4339.5,0.21603365]
[1757054508400,1.12633985,4339.6,4339.5,0.21603365]
[1757054508599,1.12553985,4339.6,4339.5,0.21603365]
[1757054508830,1.41693985,4339.6,4339.5,0.21603365]
[1757054511726,0.98343985,4339.6,4339.5,0.21603365]
[1757054513405,0.69203985,4339.6,4339.5,0.21603365]
[1757054513736,0.98343985,4339.6,4339.5,0.21603365]
[1757054514206,0.98343985,4339.6,4339.5,0.21594684]
[1757054514407,0.98343985,4339.6,4339.4,3.841]
[1757054515212,0.98343985,4339.6,4339.5,0.21594414]
[1757054519551,0.69203985,4339.6,4339.5,0.98894414]
[1757054520552,0.69203985,4339.6,4339.5,1.42504414]
[1757054520951,0.69203985,4339.6,4339.5,0.98894414]
[1757054521124,0.0252,4339.8,4339.5,4.3395715]
[1757054521323,0.0252,4339.8,4339.6,4.96604414]
[1757054521542,0.0252,4339.8,4339.7,0.21594414]
[1757054521850,0.0252,4339.8,4339.7,3.72935088]
[1757054522151,0.0252,4339.8,4339.7,4.66249741]
[1757054523559,0.0252,4339.8,4339.7,4.44655327]
[1757054523728,0.0252,4339.8,4339.7,4.66246124]
[1757054534472,0.0252,4339.8,4339.7,4.54726124]
[1757054536571,0.0244,4339.8,4339.7,4.54726124]
[1757054538984,0.0244,4339.8,4339.7,4.11116124]
[1757054539480,0.0244,4339.8,4339.7,4.57446124]
[1757054541248,0.0244,4339.8,4339.7,4.11116124]
[1757054541450,0.0244,4339.8,4339.7,4.57446124]
[1757054544285,0.0244,4339.8,4339.7,4.68966124]
[1757054544950,0.0244,4339.8,4339.7,8.25105277]
[1757054548486,0.0244,4339.8,4339.7,4.68966124]
[1757054564414,0.0236,4339.8,4339.7,4.68966124]
[1757054565935,0.0236,4339.8,4339.7,4.22636124]
[1757054572008,0.0236,4339.8,4339.7,5.92436124]
[1757054575558,0.0236,4339.8,4339.7,6.02304329]
[1757054575720,0.0236,4339.8,4339.7,5.80677604]
[1757054576851,0.0236,4339.8,4339.7,5.30897604]
[1757054577057,0.3372,4339.8,4339.7,5.30897604]
[1757054577458,0.0236,4339.8,4339.7,5.30897604]
[1757054578567,0.0236,4339.8,4339.7,5.52525294]
[1757054579267,0.3372,4339.8,4339.7,5.52525819]
[1757054579436,0.3372,4339.8,4339.7,4.33378889]
[1757054583851,0.0236,4339.8,4339.7,4.33378889]
[1757054584674,0.0236,4339.8,4339.7,5.58288889]
[1757054590093,0.0236,4339.8,4339.7,5.36660674]
[1757054590303,0.0236,4339.8,4339.7,5.58289056]
[1757054590492,0.0236,4339.8,4339.7,6.85109867]
[1757054592272,0.0228,4339.8,4339.7,6.85109867]
[1757054593345,0.0228,4339.8,4339.7,6.41519867]
[1757054594228,0.0228,4339.8,4339.7,6.09979867]
[1757054595998,0.0228,4339.8,4339.7,5.60199867]
[1757054596832,0.0228,4339.8,4339.7,6.05849867]